[Event "elllobregat Open-A 2019"]
[Site "El Prat de Llobregat"]
[Date "2019.12.10"]
[Round "8.9"]
[White "Kulkarni Bhakti"]
[Black "Lagarde, Maxime"]
[Result "0-1"]
[ECO "A87"]
[WhiteElo "2224"]
[BlackElo "2630"]
[Annotator "ChessBase"]
[PlyCount "174"]
[EventDate "2019.12.03"]
[EventType "swiss"]
[EventCountry "ESP"]
[SourceTitle "playchess.com"]
[Source "ChessBase"]
[SourceQuality "1"]
[TimeControl "40/5400+30:1800+30"]

1. d4 {[%emt 0:00:00]} f5 {[%emt 0:00:00]} 2. Nf3 {[%emt 0:00:28]} Nf6 {[%emt 0:00:00]} 3. c4 {[%emt 0:01:33]} g6 {[%emt 0:00:03]} 4. g3 {[%emt 0:01:00]} Bg7 {[%emt 0:00:05]} 5. Bg2 {[%emt 0:00:07]} O-O {[%emt 0:00:04]} 6. O-O {[%emt 0:00:27]} d6 {[%emt 0:00:05]} 7. b3 {[%emt 0:01:26]} Nh5 {[%emt 0:21:14]} 8. Nc3 {[%emt 0:11:26]} Nc6 {[%emt 0:03:10]} 9. Ba3 {[%emt 0:06:50]} f4 10. Rc1 {[%emt 0:04:55]} Bg4 {[%emt 0:10:15]} 11. d5 {[%emt 0:01:17]} Bxf3 {[%emt 0:01:24]} 12. exf3 {[%emt 0:05:49]} Ne5 {[%emt 0:05:01]} 13. g4 {[%emt 0:07:35]} Nf6 {[%emt 0:00:40]} 14. g5 {[%emt 0:01:00]} Nfd7 {[%emt 0:02:15]} 15. Bh3 {[%emt 0:02:39]} Kh8 {[%emt 0:08:19]} 16. Be6 {[%emt 0:06:35]} c6 {[%emt 0:01:32]} 17. Ne4 {[%emt 0:06:54]} Rc8 {[%emt 0:06:39]} 18. Kg2 {[%emt 0:02:26]} Qa5 {[%emt 0:03:38]} 19. Bb2 {[%emt 0:02:03]} cxd5 {[%emt 0:02:51]} 20. cxd5 {[%emt 0:05:29]} Rxc1 {[%emt 0:06:08]} 21. Qxc1 {[%emt 0:00:43]} Nd3 {[%emt 0:03:27]} 22. Bxg7+ {[%emt 0:00:17]} Kxg7 {[%emt 0:00:03]} 23. Qa1+ {[%emt 0:02:48]} N7e5 {[%emt 0:00:04]} 24. Rd1 {[%emt 0:04:00]} Nc5 {[%emt 0:06:59]} 25. Nxc5 {[%emt 0:09:03]} Qxc5 {[%emt 0:00:05]} 26. Rc1 {[%emt 0:01:34]} Qb6 {[%emt 0:07:10]} 27. Qc3 {[%emt 0:01:17]} h6 {[%emt 0:00:05]} 28. gxh6+ {[%emt 0:04:13]} Kxh6 {[%emt 0:02:20]} 29. Qc7 {[%emt 0:01:50]} Nd3 {[%emt 0:00:38]} 30. Qxb6 {[%emt 0:00:15]} axb6 {[%emt 0:00:05]} 31. Rc7 {[%emt 0:01:54]} Ra8 {[%emt 0:01:43]} 32. a4 {[%emt 0:00:20]} b5 {[%emt 0:00:35]} 33. axb5 Ra2 {[%emt 0:02:04]} 34. Rxb7 {[%emt 0:05:38]} Rxf2+ {[%emt 0:00:16]} 35. Kg1 {[%emt 0:00:09]} Rb2 {[%emt 0:00:13]} 36. Rxe7 {[%emt 0:03:07]} Rxb3 {[%emt 0:00:44]} 37. h4 {[%emt 0:00:38]} Ne5 {[%emt 0:01:34]} 38. b6 {[%emt 0:00:33]} Rxb6 {[%emt 0:03:08]} 39. Bg4 {[%emt 0:00:07]} Rb5 {[%emt 0:00:58]} 40. Re6 {[%emt 0:00:00]} Rxd5 {[%emt 0:00:00]} 41. h5 {[%emt 0:02:24]} Kg5 {[%emt 0:04:32]} 42. hxg6 {[%emt 0:00:45]} Nxg6 {[%emt 0:00:17]} 43. Re8 {[%emt 0:02:41]} Rd4 {[%emt 0:04:46]} 44. Rg8 {[%emt 0:03:52]} Kf6 {[%emt 0:00:18]} 45. Kf2 {[%emt 0:01:33]} Ne5 {[%emt 0:00:19]} 46. Rf8+ {[%emt 0:01:17]} Ke7 {[%emt 0:02:47]} 47. Rf5 {[%emt 0:00:36]} Nc4 {[%emt 0:00:45]} 48. Ke2 {[%emt 0:00:56]} d5 {[%emt 0:00:58]} 49. Bh5 {[%emt 0:00:34]} Ke6 {[%emt 0:03:11]} 50. Bg4 {[%emt 0:01:01]} Kd6 {[%emt 0:00:21]} 51. Bh5 {[%emt 0:00:12]} Rd2+ {[%emt 0:01:46]} 52. Ke1 {[%emt 0:00:05]} Rh2 {[%emt 0:00:46]} 53. Bg6 {[%emt 0:02:51]} Ne3 {[%emt 0:01:05]} 54. Rf8 {[%emt 0:00:34]} Ke5 {[%emt 0:04:52]} 55. Bd3 {[%emt 0:01:13]} Ng2+ {[%emt 0:00:24]} 56. Kf1 {[%emt 0:03:58]} Nh4 {[%emt 0:00:05]} 57. Be2 {[%emt 0:00:30]} Nf5 {[%emt 0:00:43]} 58. Ke1 {[%emt 0:03:08]} Ng3 {[%emt 0:00:23]} 59. Re8+ {[%emt 0:00:34]} Kd4 {[%emt 0:00:07]} 60. Ba6 {[%emt 0:00:30]} Ra2 {[%emt 0:01:04]} 61. Re6 {[%emt 0:00:45]} Ra5 {[%emt 0:03:12]} 62. Kf2 {[%emt 0:00:42]} Ra3 {[%emt 0:00:10]} 63. Rb6 {[%emt 0:02:00]} Nf5 {[%emt 0:01:18]} 64. Bc8 {[%emt 0:01:32]} Ra2+ {[%emt 0:02:43]} 65. Ke1 {[%emt 0:00:24]} Ne3 {[%emt 0:01:50]} 66. Ba6 {[%emt 0:00:40]} Nc4 {[%emt 0:02:09]} 67. Re6 {[%emt 0:00:23]} Kc3 {[%emt 0:02:55]} 68. Rf6 {[%emt 0:01:24]} Ne3 {[%emt 0:02:00]} 69. Rc6+ {[%emt 0:00:54]} Kd4 {[%emt 0:00:13]} 70. Rb6 {[%emt 0:03:27]} Nc2+ {[%emt 0:01:22]} 71. Kf1 {[%emt 0:00:35]} Ke5 {[%emt 0:01:22]} 72. Bc8 {[%emt 0:01:13]} Ra8 {[%emt 0:01:01]} 73. Re6+ {[%emt 0:01:25]} Kd4 {[%emt 0:00:02]} 74. Ba6 {[%emt 0:00:12]} Kc3 {[%emt 0:01:03]} 75. Kf2 {[%emt 0:01:48]} Rh8 {[%emt 0:00:27]} 76. Rf6 {[%emt 0:00:46]} Rh2+ 77. Kg1 {[%emt 0:00:16]} Rh4 {[%emt 0:00:20]} 78. Kf2 {[%emt 0:00:45]} Kd2 {[%emt 0:00:49]} 79. Bb7 {[%emt 0:01:18]} d4 {[%emt 0:00:30]} 80. Be4 {[%emt 0:00:14]} d3 {[%emt 0:00:32]} 81. Rd6 {[%emt 0:00:45]} Ne1 {[%emt 0:00:04]} 82. Ra6 {[%emt 0:00:25]} Rh2+ {[%emt 0:00:35]} 83. Kg1 {[%emt 0:00:06]} Re2 {[%emt 0:00:30]} 84. Bb7 {[%emt 0:00:34]} Re7 {[%emt 0:00:33]} 85. Be4 {[%emt 0:00:40]} Ke2 {[%emt 0:01:06]} 86. Rd6 {[%emt 0:00:42]} Rxe4 {[%emt 0:00:21]} 87. fxe4 {[%emt 0:00:03]} f3 {[%emt 0:00:02]} 0-1

[Event "elllobregat Open-A 2019"]
[Site "El Prat de Llobregat"]
[Date "2019.12.10"]
[Round "8.11"]
[White "Alonso Rosell, Alvar"]
[Black "Kacharava, Nikolozi"]
[Result "1-0"]
[ECO "A05"]
[WhiteElo "2617"]
[BlackElo "2105"]
[Annotator "ChessBase"]
[PlyCount "175"]
[EventDate "2019.12.03"]
[EventType "swiss"]
[EventCountry "ESP"]
[SourceTitle "playchess.com"]
[Source "ChessBase"]
[SourceQuality "1"]
[TimeControl "40/5400+30:1800+30"]

1. Nf3 {[%emt 0:15:18]} Nf6 {[%emt 0:00:22]} 2. g3 {[%emt 0:00:04]} g6 {[%emt 0:00:21]} 3. Bg2 {[%emt 0:00:46]} Bg7 {[%emt 0:00:21]} 4. c4 {[%emt 0:01:15]} d6 {[%emt 0:00:47]} 5. Nc3 {[%emt 0:01:05]} O-O {[%emt 0:01:04]} 6. O-O {[%emt 0:01:56]} Nc6 {[%emt 0:00:48]} 7. d3 {[%emt 0:00:33]} e5 {[%emt 0:00:57]} 8. Rb1 {[%emt 0:00:05]} a5 {[%emt 0:00:41]} 9. a3 {[%emt 0:00:05]} Re8 {[%emt 0:00:50]} 10. Bg5 {[%emt 0:38:31]} h6 11. Bxf6 {[%emt 0:02:27]} Bxf6 {[%emt 0:10:04]} 12. b4 {[%emt 0:00:14]} axb4 {[%emt 0:00:58]} 13. axb4 {[%emt 0:00:02]} Ne7 {[%emt 0:03:13]} 14. Nd2 {[%emt 0:02:52]} Bg7 {[%emt 0:02:04]} 15. Ra1 {[%emt 0:07:25]} Be6 {[%emt 0:08:56]} 16. Bxb7 {[%emt 0:09:23]} Rb8 {[%emt 0:03:44]} 17. Bg2 {[%emt 0:00:22]} Rxb4 {[%emt 0:10:16]} 18. Ra8 {[%emt 0:03:41]} Rb8 {[%emt 0:06:38]} 19. Rxb8 {[%emt 0:00:30]} Qxb8 {[%emt 0:00:01]} 20. Nd5 {[%emt 0:01:26]} Bxd5 {[%emt 0:02:26]} 21. cxd5 {[%emt 0:00:11]} Qa7 {[%emt 0:08:18]} 22. Qc2 {[%emt 0:05:33]} Rb8 {[%emt 0:02:22]} 23. Rc1 {[%emt 0:00:51]} Rb7 {[%emt 0:00:46]} 24. e3 {[%emt 0:00:37]} Qa3 {[%emt 0:07:24]} 25. Nc4 {[%emt 0:03:10]} Qb3 {[%emt 0:01:13]} 26. Qe2 {[%emt 0:02:15]} Ra7 {[%emt 0:03:32]} 27. Qd1 {[%emt 0:01:11]} Qxd1+ {[%emt 0:04:04]} 28. Rxd1 {[%emt 0:00:01]} Rb7 {[%emt 0:01:18]} 29. Kf1 {[%emt 0:00:09]} Nc8 {[%emt 0:09:17]} 30. Na5 {[%emt 0:01:59]} Rb5 {[%emt 0:02:35]} 31. Nc6 {[%emt 0:00:02]} Bf8 {[%emt 0:01:58]} 32. Ra1 {[%emt 0:00:52]} Ne7 {[%emt 0:01:27]} 33. Ra8 {[%emt 0:00:53]} Kg7 {[%emt 0:00:32]} 34. Rb8 {[%emt 0:00:42]} Rc5 {[%emt 0:01:39]} 35. Nb4 {[%emt 0:00:14]} Rc1+ {[%emt 0:04:14]} 36. Ke2 {[%emt 0:00:01]} Rb1 {[%emt 0:00:23]} 37. Na6 {[%emt 0:00:35]} Rc1 {[%emt 0:02:00]} 38. Kd2 {[%emt 0:00:53]} Rg1 {[%emt 0:00:40]} 39. Bf3 {[%emt 0:00:13]} Rf1 {[%emt 0:00:27]} 40. Ke2 {[%emt 0:00:00]} Rc1 {[%emt 0:00:00]} 41. Rb7 {[%emt 0:04:17]} Rc2+ {[%emt 0:03:57]} 42. Ke1 {[%emt 0:04:05]} c5 {[%emt 0:10:59]} 43. dxc6 {[%emt 0:08:10]} Nxc6 {[%emt 0:00:34]} 44. Kd1 {[%emt 0:02:08]} Ra2 {[%emt 0:09:27]} 45. Bxc6 {[%emt 0:00:10]} Rxa6 {[%emt 0:00:46]} 46. Bd5 {[%emt 0:00:01]} Kh8 {[%emt 0:01:02]} 47. Bxf7 {[%emt 0:00:53]} g5 {[%emt 0:01:07]} 48. Ke2 {[%emt 0:02:05]} Rc6 {[%emt 0:00:52]} 49. h3 {[%emt 0:01:02]} Rc2+ {[%emt 0:01:39]} 50. Kf3 {[%emt 0:00:02]} Rd2 {[%emt 0:00:57]} 51. Rd7 {[%emt 0:05:05]} Kg7 {[%emt 0:02:43]} 52. Be8+ {[%emt 0:01:03]} Kh8 {[%emt 0:00:43]} 53. Bg6 {[%emt 0:00:13]} Kg8 {[%emt 0:00:32]} 54. Bh7+ {[%emt 0:00:23]} Kh8 {[%emt 0:00:01]} 55. Bf5 {[%emt 0:00:09]} Rb2 {[%emt 0:01:09]} 56. Rf7 {[%emt 0:02:27]} Bg7 {[%emt 0:00:54]} 57. Kg4 {[%emt 0:00:24]} d5 {[%emt 0:01:04]} 58. Rd7 {[%emt 0:01:23]} Kg8 {[%emt 0:00:36]} 59. Kh5 {[%emt 0:03:21]} d4 {[%emt 0:01:03]} 60. exd4 {[%emt 0:00:56]} exd4 {[%emt 0:00:08]} 61. Be6+ {[%emt 0:00:22]} Kh7 {[%emt 0:00:01]} 62. Rd8 {[%emt 0:01:10]} Be5 {[%emt 0:00:46]} 63. f4 {[%emt 0:01:19]} gxf4 {[%emt 0:00:27]} 64. gxf4 Bf6 {[%emt 0:01:10]} 65. Bf5+ {[%emt 0:00:17]} Kg7 {[%emt 0:00:00]} 66. Rd7+ {[%emt 0:00:08]} Kf8 {[%emt 0:00:30]} 67. Kg6 {[%emt 0:00:53]} Be7 {[%emt 0:00:20]} 68. Be6 {[%emt 0:00:30]} Re2 {[%emt 0:00:59]} 69. Bg4 {[%emt 0:00:42]} Rb2 {[%emt 0:00:29]} 70. Kxh6 {[%emt 0:01:17]} Rb6+ {[%emt 0:00:16]} 71. Kh5 {[%emt 0:00:41]} Rd6 {[%emt 0:00:19]} 72. Rb7 {[%emt 0:00:33]} Kf7 {[%emt 0:00:37]} 73. Bf3 {[%emt 0:00:35]} Rd8 {[%emt 0:00:37]} 74. Be4 {[%emt 0:00:29]} Rh8+ {[%emt 0:00:48]} 75. Kg4 {[%emt 0:00:02]} Rd8 {[%emt 0:00:34]} 76. Bg6+ {[%emt 0:00:23]} Kf6 {[%emt 0:00:23]} 77. h4 {[%emt 0:00:11]} Ra8 {[%emt 0:00:22]} 78. h5 {[%emt 0:00:23]} Ra1 {[%emt 0:00:39]} 79. Rb6+ Kg7 {[%emt 0:00:01]} 80. Be4 {[%emt 0:00:23]} Rg1+ {[%emt 0:01:11]} 81. Kf5 {[%emt 0:00:02]} Bf8 {[%emt 0:00:35]} 82. h6+ {[%emt 0:00:41]} Kg8 {[%emt 0:00:09]} 83. Ke5 {[%emt 0:00:17]} Kh8 {[%emt 0:00:50]} 84. h7 {[%emt 0:00:34]} Rg7 {[%emt 0:00:27]} 85. Rb8 {[%emt 0:00:07]} Rf7 {[%emt 0:00:21]} 86. Bg6 {[%emt 0:00:14]} Re7+ {[%emt 0:00:40]} 87. Kf5 {[%emt 0:00:02]} Kg7 {[%emt 0:00:34]} 88. Rxf8 {[%emt 0:00:18]} 1-0

[Event "elllobregat Open-A 2019"]
[Site "El Prat de Llobregat"]
[Date "2019.12.11"]
[Round "9.1"]
[White "Puranik, Abhimanyu"]
[Black "Narayanan.S.L"]
[Result "1/2-1/2"]
[ECO "B91"]
[WhiteElo "2580"]
[BlackElo "2626"]
[Annotator "ChessBase"]
[PlyCount "80"]
[EventDate "2019.12.03"]
[EventType "swiss"]
[EventCountry "ESP"]
[SourceTitle "playchess.com"]
[Source "ChessBase"]
[SourceQuality "1"]
[TimeControl "40/5400+30:1800+30"]

1. e4 {[%emt 0:00:00]} c5 {[%emt 0:00:00]} 2. Nf3 {[%emt 0:00:00]} d6 {[%emt 0:00:00]} 3. d4 {[%emt 0:00:00]} cxd4 {[%emt 0:00:00]} 4. Nxd4 {[%emt 0:00:00]} Nf6 {[%emt 0:00:00]} 5. Nc3 {[%emt 0:00:00]} a6 {[%emt 0:00:00]} 6. g3 {[%emt 0:00:11]} e5 {[%emt 0:00:00]} 7. Nde2 {[%emt 0:00:03]} Be7 {[%emt 0:00:02]} 8. Bg2 {[%emt 0:00:04]} h5 {[%emt 0:00:05]} 9. Bg5 {[%emt 0:02:04]} Be6 {[%emt 0:00:49]} 10. Qd2 {[%emt 0:03:05]} Nbd7 {[%emt 0:02:17]} 11. f4 {[%emt 0:12:51]} b5 {[%emt 0:03:01]} 12. b3 {[%emt 0:09:41]} Nc5 {[%emt 0:09:18]} 13. f5 {[%emt 0:09:29]} Bc8 {[%emt 0:01:18]} 14. Bxf6 {[%emt 0:00:33]} Bxf6 {[%emt 0:01:47]} 15. h4 {[%emt 0:00:16]} Bb7 {[%emt 0:06:12]} 16. Nd5 {[%emt 0:00:55]} Bxd5 {[%emt 0:02:13]} 17. Qxd5 {[%emt 0:00:05]} Rc8 {[%emt 0:01:42]} 18. O-O {[%emt 0:10:14]} Qb6 {[%emt 0:13:16]} 19. Kh2 {[%emt 0:00:57]} Nd7 {[%emt 0:00:34]} 20. Qd3 {[%emt 0:14:02]} Be7 {[%emt 0:14:32]} 21. Bf3 {[%emt 0:02:08]} Nf6 {[%emt 0:00:21]} 22. c3 {[%emt 0:02:13]} O-O {[%emt 0:02:49]} 23. Kg2 {[%emt 0:03:06]} Rfd8 {[%emt 0:04:17]} 24. a4 {[%emt 0:06:40]} Rc5 {[%emt 0:11:47]} 25. axb5 {[%emt 0:01:49]} axb5 {[%emt 0:00:05]} 26. Qe3 {[%emt 0:02:44]} Qb8 {[%emt 0:09:16]} 27. Rfd1 {[%emt 0:07:20]} Rd7 {[%emt 0:06:04]} 28. Ra2 {[%emt 0:04:59]} Kh7 {[%emt 0:01:31]} 29. Rda1 {[%emt 0:02:04]} d5 {[%emt 0:04:53]} 30. Ra8 {[%emt 0:01:57]} Qc7 {[%emt 0:00:06]} 31. Qg5 {[%emt 0:02:15]} g6 {[%emt 0:00:14]} 32. fxg6+ {[%emt 0:00:19]} fxg6 {[%emt 0:00:05]} 33. R1a6 {[%emt 0:00:34]} Rc6 {[%emt 0:01:03]} 34. exd5 {[%emt 0:01:51]} Nxd5 {[%emt 0:00:07]} 35. Qc1 {[%emt 0:01:05]} Rxa6 {[%emt 0:00:05]} 36. Rxa6 {[%emt 0:00:02]} Qc5 {[%emt 0:02:15]} 37. b4 {[%emt 0:02:21]} Qc4 {[%emt 0:00:15]} 38. Qb1 {[%emt 0:00:28]} Nf6 {[%emt 0:02:04]} 39. Rc6 {[%emt 0:00:04]} Qf7 {[%emt 0:00:06]} 40. Qc2 {[%emt 0:00:00]} Kg7 {[%emt 0:00:00]} 1/2-1/2

[Event "elllobregat Open-A 2019"]
[Site "El Prat de Llobregat"]
[Date "2019.12.11"]
[Round "9.2"]
[White "Bartel, Mateusz"]
[Black "Erigaisi Arjun"]
[Result "1-0"]
[ECO "B91"]
[WhiteElo "2634"]
[BlackElo "2544"]
[Annotator "ChessBase"]
[PlyCount "107"]
[EventDate "2019.12.03"]
[EventType "swiss"]
[EventCountry "ESP"]
[SourceTitle "playchess.com"]
[Source "ChessBase"]
[SourceQuality "1"]
[TimeControl "40/5400+30:1800+30"]

1. e4 {[%emt 0:00:00]} c5 {[%emt 0:00:00]} 2. Nf3 {[%emt 0:00:00]} d6 {[%emt 0:00:00]} 3. d4 {[%emt 0:00:01]} cxd4 {[%emt 0:00:00]} 4. Nxd4 {[%emt 0:00:05]} Nf6 {[%emt 0:00:00]} 5. Nc3 {[%emt 0:00:04]} a6 {[%emt 0:00:01]} 6. g3 {[%emt 0:00:04]} e5 {[%emt 0:00:04]} 7. Nde2 {[%emt 0:00:06]} b5 {[%emt 0:00:12]} 8. Nd5 {[%emt 0:00:17]} Bg4 {[%emt 0:04:07]} 9. Bg2 {[%emt 0:03:01]} Nbd7 10. Bg5 {[%emt 0:19:00]} Be7 {[%emt 0:04:54]} 11. Nxe7 {[%emt 0:01:18]} Qxe7 {[%emt 0:00:16]} 12. Qd2 {[%emt 0:01:57]} h6 {[%emt 0:08:02]} 13. Be3 O-O {[%emt 0:03:42]} 14. O-O-O {[%emt 0:10:24]} Bxe2 {[%emt 0:06:54]} 15. Qxe2 Rac8 {[%emt 0:04:36]} 16. Kb1 {[%emt 0:05:34]} Nc5 {[%emt 0:05:04]} 17. f3 Rfd8 18. Bh3 {[%emt 0:09:19]} Ne6 {[%emt 0:11:07]} 19. Bf2 {[%emt 0:08:36]} Qb7 {[%emt 0:09:00]} 20. Rd3 d5 {[%emt 0:05:09]} 21. exd5 {[%emt 0:01:09]} Rxd5 22. Bxe6 {[%emt 0:03:48]} fxe6 {[%emt 0:00:29]} 23. Rxd5 {[%emt 0:00:08]} Qxd5 {[%emt 0:00:35]} 24. Rd1 {[%emt 0:00:07]} Qc6 {[%emt 0:00:35]} 25. c3 {[%emt 0:03:19]} a5 {[%emt 0:10:11]} 26. g4 b4 {[%emt 0:09:47]} 27. cxb4 {[%emt 0:13:58]} axb4 {[%emt 0:00:22]} 28. Bg3 {[%emt 0:00:05]} e4 {[%emt 0:01:04]} 29. fxe4 {[%emt 0:00:19]} Nxe4 {[%emt 0:01:02]} 30. Be1 {[%emt 0:00:19]} b3 {[%emt 0:09:59]} 31. axb3 {[%emt 0:00:22]} e5 {[%emt 0:00:56]} 32. Ba5 {[%emt 0:09:31]} Qg6 {[%emt 0:01:22]} 33. Ka2 {[%emt 0:00:33]} Ra8 {[%emt 0:02:07]} 34. Rd8+ {[%emt 0:04:46]} Rxd8 {[%emt 0:00:04]} 35. Bxd8 {[%emt 0:00:05]} Kf8 36. Bc7 {[%emt 0:03:16]} Nf6 {[%emt 0:02:48]} 37. Bxe5 {[%emt 0:00:43]} Qxg4 {[%emt 0:00:50]} 38. Qc4 {[%emt 0:00:28]} Qd7 {[%emt 0:00:43]} 39. Bd4 {[%emt 0:03:43]} Nd5 {[%emt 0:00:07]} 40. Ka3 {[%emt 0:00:00]} Ke8 {[%emt 0:00:00]} 41. b4 {[%emt 0:00:59]} Qh3+ {[%emt 0:04:11]} 42. b3 {[%emt 0:04:11]} Ne7 {[%emt 0:01:34]} 43. Qe2 {[%emt 0:02:09]} g6 {[%emt 0:03:03]} 44. Bc5 {[%emt 0:01:32]} Qd7 {[%emt 0:00:06]} 45. Qe5 {[%emt 0:03:14]} Kf7 {[%emt 0:01:14]} 46. Qh8 {[%emt 0:00:47]} Qe6 {[%emt 0:03:20]} 47. b5 {[%emt 0:01:01]} Qe1 {[%emt 0:00:43]} 48. Ka4 {[%emt 0:01:19]} Qh4+ {[%emt 0:03:48]} 49. b4 {[%emt 0:01:52]} Nf5 {[%emt 0:00:35]} 50. Qf8+ {[%emt 0:00:07]} Ke6 {[%emt 0:00:05]} 51. Qe8+ {[%emt 0:00:05]} Kd5 {[%emt 0:00:53]} 52. Qxg6 {[%emt 0:01:07]} Qh3 {[%emt 0:00:41]} 53. Qc6+ {[%emt 0:00:27]} Ke5 {[%emt 0:00:06]} 54. b6 {[%emt 0:00:07] Kd5} 1-0

[Event "elllobregat Open-A 2019"]
[Site "El Prat de Llobregat"]
[Date "2019.12.11"]
[Round "9.3"]
[White "Iniyan, P."]
[Black "Lagarde, Maxime"]
[Result "0-1"]
[ECO "C11"]
[WhiteElo "2497"]
[BlackElo "2655"]
[Annotator "ChessBase"]
[PlyCount "78"]
[EventDate "2019.12.03"]
[EventType "swiss"]
[EventCountry "ESP"]
[SourceTitle "playchess.com"]
[Source "ChessBase"]
[SourceQuality "1"]
[TimeControl "40/5400+30:1800+30"]

1. e4 {[%emt 0:00:00]} e6 {[%emt 0:13:57]} 2. d4 {[%emt 0:00:00]} d5 {[%emt 0:00:16]} 3. Nc3 {[%emt 0:00:00]} Nf6 {[%emt 0:00:06]} 4. e5 {[%emt 0:00:05]} Nfd7 {[%emt 0:00:03]} 5. f4 {[%emt 0:00:12]} c5 {[%emt 0:00:17]} 6. Nf3 {[%emt 0:00:06]} Nc6 {[%emt 0:00:26]} 7. Be3 {[%emt 0:00:10]} Be7 {[%emt 0:00:49]} 8. Qd2 {[%emt 0:01:24]} O-O {[%emt 0:00:37]} 9. dxc5 {[%emt 0:03:27]} Qa5 {[%emt 0:00:19]} 10. a3 {[%emt 0:05:39]} Bxc5 {[%emt 0:04:47]} 11. Bxc5 {[%emt 0:01:43]} Nxc5 {[%emt 0:07:34]} 12. O-O-O {[%emt 0:01:15]} Bd7 {[%emt 0:10:21]} 13. Kb1 {[%emt 0:07:49]} Rab8 {[%emt 0:13:10]} 14. Nxd5 {[%emt 0:06:41]} exd5 {[%emt 0:07:03]} 15. Qxa5 {[%emt 0:00:11]} Nxa5 {[%emt 0:00:04]} 16. Rxd5 {[%emt 0:06:04]} b6 {[%emt 0:00:04]} 17. b4 {[%emt 0:00:09]} Bc6 {[%emt 0:02:49]} 18. Rd2 {[%emt 0:09:37]} Ne4 {[%emt 0:05:48]} 19. Rd4 {[%emt 0:00:06]} Nb7 {[%emt 0:01:42]} 20. Kb2 {[%emt 0:05:42]} Nbc5 {[%emt 0:03:26]} 21. Bc4 {[%emt 0:06:04]} b5 {[%emt 0:05:03]} 22. Bxf7+ {[%emt 0:03:39]} Rxf7 {[%emt 0:00:05]} 23. bxc5 {[%emt 0:00:06]} Rxf4 {[%emt 0:04:05]} 24. Re1 {[%emt 0:00:12]} Re8 {[%emt 0:01:51]} 25. Kc1 {[%emt 0:12:25]} h6 {[%emt 0:02:12]} 26. Nd2 {[%emt 0:02:40]} Rxe5 {[%emt 0:01:33]} 27. g3 {[%emt 0:00:08]} Rf7 {[%emt 0:04:59]} 28. Rexe4 {[%emt 0:02:56]} Bxe4 {[%emt 0:00:08]} 29. Nxe4 {[%emt 0:00:12]} Rfe7 {[%emt 0:00:27]} 30. c6 {[%emt 0:00:33]} Rxe4 {[%emt 0:02:44]} 31. c7 {[%emt 0:00:02]} Re1+ {[%emt 0:00:06]} 32. Kd2 {[%emt 0:00:05]} R1e2+ {[%emt 0:00:07]} 33. Kd1 {[%emt 0:00:03]} Rxc7 {[%emt 0:00:02]} 34. Kxe2 {[%emt 0:00:15]} Rxc2+ {[%emt 0:00:04]} 35. Kf1 {[%emt 0:01:21]} Ra2 {[%emt 0:03:40]} 36. Rd3 {[%emt 0:00:06]} Rxh2 {[%emt 0:00:26]} 37. Rd8+ {[%emt 0:00:08]} Kh7 {[%emt 0:00:10]} 38. Ra8 {[%emt 0:00:04]} Ra2 {[%emt 0:00:28]} 39. Rxa7 {[%emt 0:00:05]} b4 {[%emt 0:00:29]} 0-1

[Event "elllobregat Open-A 2019"]
[Site "El Prat de Llobregat"]
[Date "2019.12.11"]
[Round "9.4"]
[White "Gagare, Shardul"]
[Black "Karthikeyan, Murali"]
[Result "1/2-1/2"]
[ECO "B45"]
[WhiteElo "2468"]
[BlackElo "2611"]
[Annotator "ChessBase"]
[PlyCount "80"]
[EventDate "2019.12.03"]
[EventType "swiss"]
[EventCountry "ESP"]
[SourceTitle "playchess.com"]
[Source "ChessBase"]
[SourceQuality "1"]
[TimeControl "40/5400+30:1800+30"]

1. e4 {[%emt 0:01:43]} c5 {[%emt 0:00:00]} 2. Nf3 {[%emt 0:00:21]} e6 {[%emt 0:00:52]} 3. d4 {[%emt 0:00:26]} cxd4 {[%emt 0:00:06]} 4. Nxd4 {[%emt 0:00:05]} Nc6 {[%emt 0:00:17]} 5. Nc3 {[%emt 0:00:26]} Nf6 {[%emt 0:00:10]} 6. Nxc6 {[%emt 0:00:09]} bxc6 {[%emt 0:00:06]} 7. e5 {[%emt 0:00:09]} Nd5 {[%emt 0:00:05]} 8. Ne4 {[%emt 0:00:00]} Qc7 {[%emt 0:04:08]} 9. f4 Rb8 {[%emt 0:00:55]} 10. c4 {[%emt 0:33:09]} Bb4+ {[%emt 0:00:37]} 11. Ke2 {[%emt 0:00:08]} O-O {[%emt 0:00:44]} 12. cxd5 cxd5 {[%emt 0:02:51]} 13. Ng5 {[%emt 0:23:43]} h6 {[%emt 0:05:34]} 14. Nf3 {[%emt 0:02:00]} Bc5 {[%emt 0:08:19]} 15. Qc2 {[%emt 0:05:38]} Qb6 {[%emt 0:01:50]} 16. Kd1 {[%emt 0:03:01]} d6 {[%emt 0:00:58]} 17. Bd3 {[%emt 0:00:34]} Bd7 {[%emt 0:00:52]} 18. b3 {[%emt 0:11:20]} a5 {[%emt 0:18:11]} 19. Rb1 {[%emt 0:00:52]} Rfc8 {[%emt 0:01:50]} 20. Qe2 {[%emt 0:00:57]} a4 {[%emt 0:02:23]} 21. g4 axb3 {[%emt 0:01:13]} 22. axb3 {[%emt 0:02:11]} dxe5 23. Nxe5 {[%emt 0:04:00]} Be8 {[%emt 0:06:10]} 24. g5 {[%emt 0:00:39]} hxg5 {[%emt 0:00:10]} 25. fxg5 {[%emt 0:08:06]} Bd4 {[%emt 0:06:40]} 26. Bd2 Qd6 {[%emt 0:17:00]} 27. Nf3 {[%emt 0:01:32]} Bc3 {[%emt 0:00:15]} 28. Re1 {[%emt 0:01:48]} Qa3 {[%emt 0:06:20]} 29. Bc2 {[%emt 0:00:40]} Bb5 {[%emt 0:00:58]} 30. Qe3 {[%emt 0:00:44]} d4 {[%emt 0:02:31]} 31. Nxd4 {[%emt 0:00:25]} Bxd2 {[%emt 0:02:15]} 32. Qxd2 {[%emt 0:00:38]} Rd8 {[%emt 0:00:40]} 33. g6 {[%emt 0:00:05]} f5 {[%emt 0:02:15]} 34. Rxe6 {[%emt 0:00:24]} Qa7 {[%emt 0:00:55]} 35. Qe3 {[%emt 0:01:03]} Rxd4+ {[%emt 0:03:16]} 36. Kc1 Rc8 {[%emt 0:05:22]} 37. Kb2 {[%emt 0:00:57]} Ra8 {[%emt 0:00:34]} 38. Kc1 {[%emt 0:00:23]} Rc8 {[%emt 0:00:42]} 39. Kb2 {[%emt 0:00:13]} Ra8 {[%emt 0:00:50]} 40. Kc1 {[%emt 0:00:00]} Rc8 1/2-1/2